[Event "26th Hit Open-A 2022"]
[Site "Nova Gorica"]
[Date "2022.09.20"]
[Round "7.28"]
[White "Gregoric, Andraz"]
[Black "Oestmann, Lukas"]
[Result "1-0"]
[ECO "B20"]
[WhiteElo "2182"]
[BlackElo "1620"]
[Annotator "TA"]
[PlyCount "87"]
[EventDate "2022.09.16"]
[EventType "swiss"]
[EventCountry "SLO"]
[SourceTitle "playchess.com"]
[Source "ChessBase"]
[SourceQuality "1"]
[TimeControl "5400+30"]

{[%evp 9,87,3,10,-26,22,-23,-8,-74,-18,-14,0,0,0,0,0,0,45,64,49,48,35,40,74,68,152,155,162,162,1041,247,247,244,237,245,228,234,241,148,148,148,227,230,214,197,214,206,297,289,297,292,311,306,313,283,420,410,441,437,409,418,432,423,432,422,495,512,505,488,468,468,29978,29979,29980,29981,29980,29979,29984,29979,29978,29979]} 1. e4 {[%emt 0:00:01]} c5 {[%emt 0:00:04]} 2. b3 {[%emt 0:00:02]} e5 {[%emt 0:01:14]} 3. Bb2 {[%emt 0:00:15]} d6 {[%emt 0:00:15]} 4. Bc4 {[%emt 0:00:33]} Nf6 {[%emt 0:01:03]} 5. d3 {[%emt 0:00:37]} Be7 {[%emt 0:04:12]} 6. f4 {[%emt 0:01:14] [#] B20: Sicilian: Unusual White 2nd moves.} Nbd7 $146 {[%emt 0:03:03]} (6... exf4 $142 7. Nc3 Ng4) ({Predecessor:} 6... exf4 7. Qf3 Nc6 8. Qxf4 O-O 9. Nf3 a6 10. a4 Nb4 11. Qd2 d5 12. exd5 Nbxd5 {½-½ (26) Phadke,S (2247)-Patil,P (2197) Kolkata 2012}) 7. Nf3 {[%emt 0:06:35][%cal Rf4e5]} exf4 {[%emt 0:03:57] Black wants to play ...Ng4.} 8. O-O {[%emt 0:00:38]} (8. Qd2 $11) 8... O-O {[%emt 0:01:08]} (8... Ng4 $17 9. Qc1 (9. Bxg7 $2 Rg8 $19) 9... Ne3) 9. Qd2 $11 {[%emt 0:04:04]} Nb6 {[%emt 0:04:08]} 10. Qxf4 {[%emt 0:06:00]} d5 {[%emt 0:01:30]} 11. exd5 {[%emt 0:01:56]} Nbxd5 {[%emt 0:02:06]} 12. Qd2 {[%emt 0:00:51]} Ng4 {[%emt 0:16:59]} 13. Bxd5 {[%emt 0:02:40]} Qxd5 {[%emt 0:00:14]} 14. Nc3 {[%emt 0:02:35]} Qh5 {[%emt 0:03:30]} 15. h3 {[%emt 0:03:51]} Nh6 {[%emt 0:11:00]} 16. Ne4 $40 {[%emt 0:05:52][%mdl 128] White is up to no good.} f5 {[%emt 0:03:11]} ({Black should try} 16... Bd7 $14) 17. Qc3 $16 {[%emt 0:02:41][%csl Gb2,LRc5,LRg7][%cal Rc3g7] White has more active pieces.} Qg6 {[%emt 0:03:46] [#]} 18. Ne5 $1 {[%emt 0:00:59] Pair of Knights!} Bf6 $2 {[%emt 0:05:24]} (18... Qe6) 19. Nxf6+ $2 {[%emt 0:01:27]} (19. Qc4+ Rf7 20. Nxg6 Bxb2 21. Nd6 Bxa1 22. Ne7+ Kf8 23. Nexc8 Bd4+ 24. Kh1 Rxc8 25. Nxc8) 19... Qxf6 $18 {[%emt 0:00:39]} 20. Qxc5 {[%emt 0:00:12][%cal Oe5d7] Nd7! is the strong threat.} Be6 {[%emt 0:04:09] Inhibits Nd7.} 21. c4 {[%emt 0:05:49]} Nf7 {[%emt 0:01:54]} 22. Rae1 {[%emt 0:00:14][%cal Oe5d7] Threatens to win with Nd7!} Nxe5 {[%emt 0:01:35]} 23. Qxe5 {[%emt 0:01:57]} Qxe5 {[%emt 0:00:15]} 24. Rxe5 {[%emt 0:00:04]} Rae8 {[%emt 0:00:37] [#]} (24... Rfe8 $16 {might work better.} 25. d4 Bd7) 25. Ba3 $1 {[%emt 0:00:38]} Bd7 {[%emt 0:03:13]} 26. Ra5 {[%emt 0:03:36]} Rf6 {[%emt 0:00:40]} 27. Rxa7 {[%emt 0:00:06]} Ra6 {[%emt 0:04:21]} (27... Bc8 {was worth a try.} 28. d4 f4) 28. Rxa6 {[%emt 0:02:06]} ({Much less strong is} 28. Rxb7 Bc8 29. Re7 Rxe7 30. Bxe7 Rxa2 $18) 28... bxa6 {[%emt 0:00:03][%mdl 4096] Endgame KRB-KRB} 29. Kf2 {[%emt 0:00:30] Against Re2+} g5 {[%emt 0:01:23]} 30. d4 {[%emt 0:00:32]} f4 {[%emt 0:00:30]} 31. Rd1 {[%emt 0:00:28]} Re3 {[%emt 0:02:55]} (31... Kf7 $142 32. d5 Re3) 32. d5 {[%emt 0:01:09]} Kf7 {[%emt 0:01:24]} 33. c5 {[%emt 0:00:09][%cal Bc4c5,Bc5c6][%mdl 32]} Bb5 {[%emt 0:00:42]} 34. c6 {[%emt 0:17:15]} Re2+ {[%emt 0:02:44]} 35. Kg1 {[%emt 0:00:11]} ({Not} 35. Kf3 Rxa2 36. c7 Rc2 $16) 35... Rxa2 {[%emt 0:01:03]} 36. Bc5 {[%emt 0:00:09] Strongly threatening c7.} Rc2 {[%emt 0:03:00]} 37. b4 {[%emt 0:00:39] And now c7 would win.} Re2 {[%emt 0:02:43]} 38. d6 {[%emt 0:01:59] Threatening mate with d7.} Bxc6 {[%emt 0:00:19]} 39. d7 {[%emt 0:00:09]} Rxg2+ {[%emt 0:01:00]} (39... Bxd7 $18 40. Rxd7+ Kf6 41. Rxh7 Ra2 42. Rh6+ Kf5) 40. Kf1 {[%emt 0:00:19] White mates.} f3 {[%emt 0:03:43]} 41. d8=Q {[%emt 0:02:33]} Bb5+ {[%emt 0:00:14] [#]} 42. Rd3 $1 {[%emt 0:00:05]} Rd2 {[%emt 0:00:22]} (42... Rc2 43. Qf8+) 43. Qc7+ {[%emt 0:00:15]} Kg6 {[%emt 0:00:26]} 44. Qb6+ {[%emt 0:00:17] Weighted Error Value: White=0.20 (precise) /Black=0.41} 1-0

[Event "26th Hit Open-A 2022"]
[Site "Nova Gorica"]
[Date "2022.09.20"]
[Round "7.29"]
[White "Centrih, Aleks"]
[Black "Herega, Nejc"]
[Result "0-1"]
[ECO "B51"]
[WhiteElo "2095"]
[BlackElo "2146"]
[Annotator "TA"]
[PlyCount "96"]
[EventDate "2022.09.16"]
[EventType "swiss"]
[EventCountry "SLO"]
[SourceTitle "playchess.com"]
[Source "ChessBase"]
[SourceQuality "1"]
[TimeControl "5400+30"]

{[%evp 13,95,30,28,5,37,28,54,28,53,50,46,43,47,34,41,30,39,22,35,31,50,45,48,45,76,19,19,13,41,32,34,32,45,45,45,45,45,45,45,45,46,47,47,40,38,31,67,62,111,92,123,123,126,119,133,85,105,105,108,68,68,-33,-42,-200,-185,-182,-180,-460,-412,-1145,-1067,-1240,-728,-29990,-29991,-29991,-29992,-29992,-29993,-29993,-29994,-29998,-29999,-29999]} 1. e4 {[%emt 0:00:13]} c5 {[%emt 0:00:15]} 2. Nf3 {[%emt 0:00:07]} d6 {[%emt 0:00:06]} 3. Bb5+ {[%emt 0:00:06]} Nc6 {[%emt 0:00:03]} 4. O-O {[%emt 0:00:31]} Bd7 {[%emt 0:00:12]} 5. Re1 {[%emt 0:01:44]} Nf6 {[%emt 0:00:23]} 6. c3 {[%emt 0:02:38]} a6 {[%emt 0:00:41]} 7. Bf1 {[%emt 0:00:13]} Bg4 {[%emt 0:00:13]} 8. d3 {[%emt 0:05:51] B51: Sicilian: Moscow Variation (3 Bb5+) without 3...Bd7.} Bxf3 {[%emt 0:00:17]} 9. Qxf3 {[%emt 0:00:11]} g6 {[%emt 0:00:10]} 10. Be3 {[%emt 0:05:17] White is slightly better.} Bg7 {[%emt 0:00:19]} 11. Nd2 {[%emt 0:03:06]} Nd7 {[%emt 0:00:43]} 12. Qe2 {[%emt 0:01:37]} O-O {[%emt 0:01:12] [#]} 13. Nf3 $146 {[%emt 0:01:35]} ({Predecessor:} 13. g3 e6 14. Nf3 Qb6 15. Red1 Nde5 16. Nxe5 Bxe5 17. Qd2 Bh8 18. d4 cxd4 19. cxd4 Qa5 20. Qxa5 Nxa5 21. Rac1 Rac8 22. b3 Nc6 23. a4 Na5 24. Rb1 Rb8 {½-½ (24) Katsman,M (2278)-Nyzhnyk,I (2341) Kiev 2007}) 13... Rc8 {[%emt 0:08:13]} 14. Qd2 {[%emt 0:05:58]} Qa5 {[%emt 0:10:13]} 15. a4 {[%emt 0:07:56]} Nde5 {[%emt 0:08:29]} 16. Nxe5 {[%emt 0:06:11]} dxe5 {[%emt 0:06:50]} 17. f3 {[%emt 0:02:26]} Qc7 {[%emt 0:04:50]} 18. Qf2 {[%emt 0:03:02]} (18. Bxc5 Na5 19. Be3 Nb3 $15) 18... b6 {[%emt 0:04:23] [#]} 19. Rab1 {[%emt 0:04:45]} ({White should try} 19. a5 $1 $16 {[%cal Ra5b6]}) 19... a5 {[%emt 0:01:37]} 20. Be2 {[%emt 0:08:58][%cal Bf1e2,Be2d1,Bd1c2,Bc2b3,Bb3c4][%mdl 32]} e6 {[%emt 0:03:24]} 21. Bd1 {[%emt 0:00:52]} Rcd8 {[%emt 0:02:22]} 22. Bc2 {[%emt 0:02:15]} h6 {[%emt 0:02:29]} 23. Red1 {[%emt 0:06:05]} Kh7 {[%emt 0:01:20]} 24. Bb3 {[%emt 0:01:40]} Rd6 {[%emt 0:04:23]} 25. Bc4 {[%emt 0:02:32]} f5 {[%emt 0:01:39]} 26. Qe2 {[%emt 0:00:15]} Rfd8 {[%emt 0:03:28]} 27. Qc2 {[%emt 0:05:31]} Bf6 {[%emt 0:14:58]} 28. Qc1 {[%emt 0:03:56]} g5 {[%emt 0:00:40]} 29. g4 {[%emt 0:02:05]} Ne7 {[%emt 0:04:27][%cal Bc6e7,Be7g6,Bg6f4][%mdl 32]} 30. b4 {[%emt 0:02:15]} fxg4 {[%emt 0:06:37]} (30... cxb4 $1 $14 31. cxb4 fxg4) 31. fxg4 {[%emt 0:00:05] Black must now prevent bxa5.} Ng6 {[%emt 0:00:29]} 32. bxc5 {[%emt 0:00:47]} bxc5 {[%emt 0:00:05]} 33. Rb5 {[%emt 0:00:34]} Nf4 {[%emt 0:01:26] [#] aiming for ...Ne2+.} 34. Qc2 {[%emt 0:02:24] Prevents Ne2+.} (34. Rd2 $142) 34... h5 {[%emt 0:01:54]} 35. Rdb1 {[%emt 0:02:07]} Qf7 {[%emt 0:01:19]} 36. Bxc5 {[%emt 0:01:28] A strong pair of Bishops.} R6d7 {[%emt 0:00:41]} 37. Rb6 {[%emt 0:02:42]} (37. Bb6 $14 Rc8 38. Rf1 (38. Rxa5 hxg4 39. Be3 Bd8 $11)) 37... hxg4 {[%emt 0:01:07]} 38. Qa2 $2 {[%emt 0:04:11] Now White is beyond hope.} (38. Be3 $15 Be7 39. Rf1) 38... Be7 $19 {[%emt 0:00:41]} 39. Bxe7 {[%emt 0:04:18]} Rxe7 {[%emt 0:01:55]} 40. Rf1 $2 {[%emt 0:00:57]} (40. Kh1 {was worth a try.}) 40... Rf8 {[%emt 0:00:23][%cal Bd8f8,Bf8f7,Bf7f2,Bf2h2][%mdl 32]} 41. Kh1 {[%emt 0:00:53]} (41. d4 $142 Qh5 42. Rbb1 (42. Bxe6 $2 Nxe6 43. Rxf8 Nxf8 $19)) 41... Qh5 {[%emt 0:01:38]} 42. Qf2 {[%emt 0:00:40]} Ref7 {[%emt 0:00:27][%cal Of4e2] ( -> ...Ne2!)} 43. Qg3 {[%emt 0:00:26]} Ne2 {[%emt 0:00:45][%csl LRc3,LRf1,LRg3] Black mates.} 44. Rxf7+ {[%emt 0:00:04]} Rxf7 {[%emt 0:00:50]} 45. Qg2 {[%emt 0:01:18]} g3 {[%emt 0:01:12]} 46. Rb1 {[%emt 0:00:00]} Rf2 {[%emt 0:00:31]} ({Weaker is} 46... Nxc3 47. Re1 $17) 47. Bxe6 {[%emt 0:00:43]} Qxh2+ {[%emt 0:00:20]} 48. Qxh2+ {[%emt 0:00:12]} Rxh2# {[%emt 0:00:05] Weighted Error Value: White=0.59/Black=0.17 (very precise)} 0-1

[Event "26th Hit Open-A 2022"]
[Site "Nova Gorica"]
[Date "2022.09.20"]
[Round "7.30"]
[White "Nyysti, Sampsa"]
[Black "Vah, Denis"]
[Result "1-0"]
[ECO "C11"]
[WhiteElo "2363"]
[BlackElo "1988"]
[Annotator "ChessBase"]
[PlyCount "99"]
[EventDate "2022.09.16"]
[EventType "swiss"]
[EventCountry "SLO"]
[SourceTitle "playchess.com"]
[Source "ChessBase"]
[SourceQuality "1"]
[TimeControl "5400+30"]

1. e4 {[%emt 0:00:02]} e6 {[%emt 0:00:03]} 2. d4 {[%emt 0:00:06]} d5 {[%emt 0:00:04]} 3. Nc3 {[%emt 0:00:05]} Nf6 {[%emt 0:00:03]} 4. e5 {[%emt 0:00:08]} Nfd7 {[%emt 0:00:02]} 5. f4 {[%emt 0:00:08]} c5 {[%emt 0:00:03]} 6. Nf3 {[%emt 0:00:06]} Nc6 {[%emt 0:00:06]} 7. Be3 {[%emt 0:00:06]} cxd4 {[%emt 0:00:02]} 8. Nxd4 {[%emt 0:00:07]} Bc5 {[%emt 0:00:04]} 9. Qd2 {[%emt 0:00:23]} O-O {[%emt 0:00:06]} 10. O-O-O {[%emt 0:01:58]} a6 {[%emt 0:00:04]} 11. Nb3 {[%emt 0:01:29]} Bb4 {[%emt 0:00:11]} 12. Bd3 {[%emt 0:04:10]} b5 {[%emt 0:00:10]} 13. g4 {[%emt 0:07:03]} Bb7 {[%emt 0:03:19]} 14. Rhg1 {[%emt 0:00:09]} Na5 {[%emt 0:02:00]} 15. Rg3 {[%emt 0:18:36]} Nc4 {[%emt 0:37:06]} 16. Qe1 {[%emt 0:00:21]} Nxe3 {[%emt 0:00:23]} 17. Rxe3 {[%emt 0:01:15]} Nc5 {[%emt 0:01:27]} 18. Nxc5 {[%emt 0:09:32]} Bxc5 {[%emt 0:00:03]} 19. Rh3 {[%emt 0:00:10]} g6 {[%emt 0:00:14]} 20. g5 {[%emt 0:14:23]} Kg7 {[%emt 0:02:05]} 21. Ne2 {[%emt 0:08:14]} Rh8 {[%emt 0:06:35]} 22. Kb1 {[%emt 0:02:57]} Qb6 {[%emt 0:06:57]} 23. Rh6 {[%emt 0:04:23]} Kg8 {[%emt 0:05:52]} 24. h4 {[%emt 0:16:07]} Bf8 {[%emt 0:02:17]} 25. h5 {[%emt 0:00:02]} Bxh6 {[%emt 0:00:10]} 26. gxh6 {[%emt 0:00:02]} Qd8 {[%emt 0:02:37]} 27. Qg3 {[%emt 0:00:32]} Qf8 {[%emt 0:01:53]} 28. Qg5 {[%emt 0:02:57]} Qd8 29. Qg4 {[%emt 0:00:16]} Qf8 {[%emt 0:00:40]} 30. Ng3 {[%emt 0:03:23]} Qxh6 {[%emt 0:06:13]} 31. Rh1 {[%emt 0:00:42]} Qf8 {[%emt 0:01:12]} 32. f5 {[%emt 0:02:35]} exf5 {[%emt 0:05:46]} 33. Bxf5 {[%emt 0:00:02]} Bc8 {[%emt 0:00:16]} 34. Rf1 {[%emt 0:00:15]} Bxf5 {[%emt 0:04:07]} 35. Nxf5 {[%emt 0:00:02]} Re8 {[%emt 0:01:49]} 36. Qf4 {[%emt 0:01:29]} h6 {[%emt 0:04:16]} 37. Nd6 {[%emt 0:00:39]} g5 {[%emt 0:02:07]} 38. Qd4 {[%emt 0:00:41]} Qe7 {[%emt 0:02:15]} 39. Qxd5 {[%emt 0:00:32]} Qe6 {[%emt 0:00:18]} 40. Nxe8 {[%emt 0:00:32]} Qxe8 {[%emt 0:00:09]} 41. Rf6 {[%emt 0:02:35]} Kg7 {[%emt 0:00:04]} 42. a3 {[%emt 0:00:16]} Qe7 {[%emt 0:01:59]} 43. Rxa6 {[%emt 0:00:35]} Re8 {[%emt 0:00:02]} 44. e6 {[%emt 0:00:51]} Rd8 {[%emt 0:02:32]} 45. Qe5+ {[%emt 0:00:18]} f6 {[%emt 0:00:56]} 46. Qf5 {[%emt 0:00:04]} Kg8 {[%emt 0:02:05]} 47. Qg6+ {[%emt 0:00:24]} Qg7 {[%emt 0:00:20]} 48. e7 {[%emt 0:00:30]} Rd1+ {[%emt 0:00:04]} 49. Ka2 {[%emt 0:00:05]} Qxg6 {[%emt 0:00:12]} 50. hxg6 {[%emt 0:00:20]} 1-0

[Event "26th Hit Open-A 2022"]
[Site "Nova Gorica"]
[Date "2022.09.20"]
[Round "7.32"]
[White "Pirs, Matjaz"]
[Black "Leitner, Gerald"]
[Result "1-0"]
[ECO "B27"]
[WhiteElo "2203"]
[BlackElo "2181"]
[Annotator "TA"]
[PlyCount "85"]
[EventDate "2022.09.16"]
[EventType "swiss"]
[EventCountry "SLO"]
[SourceTitle "playchess.com"]
[Source "ChessBase"]
[SourceQuality "1"]
[TimeControl "5400+30"]

{[%evp 9,85,45,60,51,108,47,57,59,60,60,60,59,62,41,54,47,44,14,12,-12,0,0,33,11,28,13,4,-16,31,15,20,4,85,76,59,46,74,74,97,104,110,98,104,103,107,67,92,105,235,222,200,219,422,436,535,560,547,527,534,512,29974,29975,29975,29971,29987,1685,29992,532,6191,5985,5537,5668,2354,1953,1465,1589,1442,1329]} 1. e4 {[%emt 0:00:12]} c5 {[%emt 0:00:21]} 2. Nf3 {[%emt 0:00:17]} b6 {[%emt 0:00:11]} 3. d4 {[%emt 0:03:33]} cxd4 {[%emt 0:00:02]} 4. Nxd4 {[%emt 0:00:13]} Bb7 {[%emt 0:00:01]} 5. Bd3 {[%emt 0:00:26]} e5 {[%emt 0:05:30]} 6. Nf3 {[%emt 0:17:24] B27: Sicilian: 2 Nf3, unusual Black 2nd moves.} Nf6 {[%emt 0:01:13]} (6... Nc6 $14) 7. O-O {[%emt 0:01:01]} (7. Nxe5 $16 Nc6 8. Nxc6 Bxc6 9. O-O) 7... d6 {[%emt 0:01:39]} 8. Re1 {[%emt 0:02:00] [#] White is slightly better.} Nbd7 $146 {[%emt 0:00:19]} ({Predecessor:} 8... Be7 9. Nc3 O-O 10. a3 Nbd7 11. b4 a6 12. Bb2 b5 13. Qe2 Nb6 14. h3 Nh5 {1-0 (76) Aguilera Suarez,A (1800)-Diaz Mendoza,E (1542) Gran Canaria 2015}) 9. c4 {[%emt 0:01:11]} Be7 {[%emt 0:00:03]} 10. Nc3 {[%emt 0:00:06]} O-O {[%emt 0:00:04]} 11. h3 {[%emt 0:03:12]} Rc8 {[%emt 0:00:20]} 12. Qe2 {[%emt 0:06:49]} Nc5 {[%emt 0:00:41]} 13. b3 {[%emt 0:20:33]} a6 {[%emt 0:01:54]} 14. Bb2 {[%emt 0:00:39]} Nh5 {[%emt 0:07:46]} 15. Bc1 {[%emt 0:19:07]} g6 {[%emt 0:05:53]} 16. Nd5 {[%emt 0:02:15]} Bf6 {[%emt 0:09:47]} 17. g3 {[%emt 0:00:51]} Bg7 {[%emt 0:03:22]} 18. Be3 {[%emt 0:02:41]} h6 {[%emt 0:13:16]} (18... f5 $11 19. Bxc5 bxc5) 19. Bc2 {[%emt 0:05:42]} Nf6 {[%emt 0:10:29]} 20. b4 {[%emt 0:02:25]} Nxd5 {[%emt 0:13:30]} (20... Bxd5 $11 21. exd5 Nce4) 21. cxd5 $16 {[%emt 0:00:48]} Nd7 {[%emt 0:00:03]} 22. Nh4 {[%emt 0:01:35] Against f5} Kh7 {[%emt 0:07:25]} 23. Bd3 $36 {[%emt 0:00:05][%mdl 2048] Black is under strong pressure.} a5 {[%emt 0:02:34]} 24. a3 {[%emt 0:00:04][%cal Ba2a3,Ba3b4][%mdl 32]} Qe7 {[%emt 0:04:22]} 25. Qd2 {[%emt 0:00:48]} axb4 {[%emt 0:01:09]} 26. axb4 {[%emt 0:00:08]} Ra8 {[%emt 0:00:31]} 27. Rec1 {[%emt 0:01:25] aiming for Rxa8. White is more active.} Rxa1 {[%emt 0:00:44]} 28. Rxa1 {[%emt 0:00:05]} Ra8 {[%emt 0:00:06] Prevents Ra7. A mistake that costs the game.} (28... Bxd5 $16 29. exd5 e4) 29. Rxa8 $18 {[%emt 0:00:15]} Bxa8 {[%emt 0:00:01]} 30. Qa2 {[%emt 0:00:09]} Qd8 {[%emt 0:00:09]} (30... Bb7 31. Qa7 Bc8 32. Bxb6 Bf6) 31. Qa7 {[%emt 0:00:46]} f5 {[%emt 0:04:02]} 32. exf5 {[%emt 0:00:10]} Bxd5 {[%emt 0:00:03]} 33. fxg6+ {[%emt 0:00:39]} Kg8 {[%emt 0:03:21]} 34. Nf5 {[%emt 0:00:50][%csl LRd6,LRh6] [#] And now Bb5 would win.} e4 {[%emt 0:01:44]} (34... Be6 $18 35. Qb7 d5 36. Nxh6+ Bxh6) 35. Bb5 {[%emt 0:00:29]} Be6 {[%emt 0:00:05]} 36. Bxd7 {[%emt 0:03:11]} Bxd7 {[%emt 0:00:03]} 37. Nxh6+ {[%emt 0:00:44]} (37. Qa2+ $142 Kh8 38. Nxg7 Qf6 39. Nh5 Qxg6 40. Bd4+ Kh7 41. Nf6+ Qxf6 42. Bxf6) 37... Bxh6 {[%emt 0:01:41]} 38. Bxh6 {[%emt 0:00:07] KQB-KQB} (38. Qa2+ $142 d5 39. Qxd5+ Be6 40. Qxe6+ Kh8 41. Bxh6 Qd1+ 42. Kh2 Qd8 43. Qe5+ Qf6 44. Qxf6+ Kg8 45. Qg7#) 38... d5 {[%emt 0:00:03] White is clearly winning.} 39. Qb7 {[%emt 0:00:36]} Qe8 {[%emt 0:02:09]} 40. Qxd5+ {[%emt 0:00:08]} Qe6 {[%emt 0:00:34]} 41. Qd4 {[%emt 0:04:39][%csl Gh6][%cal Rd4g7] [#]} Qxg6 {[%emt 0:02:49]} 42. Qxd7 {[%emt 0:00:07]} Qxh6 {[%emt 0:00:02]} 43. Qg4+ {[%emt 0:00:32] Weighted Error Value: White=0.28 (precise) /Black=0.59} 1-0